bitfinex/quotes_SOLUSD_20220210
["timestamp","ask_amount","ask_price","bid_price","bid_amount"]
[1644469588021,1.27703739,111.51,111.44,6.0]
[1644469588217,1.27703739,111.51,111.46,13.4558]
[1644469588622,1.27703739,111.51,111.47,43.33979411]
[1644469588818,37.01782086,111.54,111.47,43.33979411]
[1644469588819,1.27703739,111.52,111.47,106.89459411]
[1644469589020,45.80661743,111.52,111.47,106.89459411]
[1644469589220,1.27703739,111.53,111.47,106.89459411]
[1644469589420,1.27703739,111.54,111.47,106.89459411]
[1644469589622,1.27703739,111.54,111.48,24.0697]
[1644469589818,1.27703739,111.54,111.48,36.7797]
[1644469590120,48.59154763,111.53,111.48,50.2332]
[1644469592124,48.59154763,111.53,111.49,6.0]
[1644469592320,48.59154763,111.53,111.5,13.4536]
[1644469594125,3.03,111.52,111.5,13.4536]
[1644469594523,1.27703739,111.55,111.5,13.7036]
[1644469594727,14.73053739,111.56,111.5,13.7036]
[1644469595123,14.73053739,111.56,111.5,13.4536]
[1644469595325,1.27703739,111.55,111.5,13.4536]
[1644469595623,14.73263739,111.55,111.5,13.4536]
[1644469595822,14.73263739,111.55,111.49,13.4562]
[1644469596025,49.61053298,111.54,111.49,13.4562]
[1644469596223,48.33349559,111.54,111.49,13.4562]
[1644469597227,61.78959559,111.54,111.49,13.4562]
[1644469597425,63.06663298,111.54,111.49,13.4562]
[1644469601030,49.61053298,111.54,111.49,13.4562]
[1644469601231,48.33349559,111.54,111.49,13.4562]
[1644469607544,61.78939559,111.54,111.49,13.4562]
[1644469609860,63.06643298,111.54,111.49,13.4562]
[1644469615178,1.27703739,111.53,111.49,13.4562]
[1644469616173,1.27703739,111.53,111.49,13.7062]
[1644469616375,1.27703739,111.53,111.49,61.53524838]
[1644469616575,48.33349559,111.54,111.49,61.53524838]
[1644469616576,1.27703739,111.54,111.49,61.53524838]
[1644469616776,1.27703739,111.54,111.5,6.0]
[1644469616975,1.27703739,111.55,111.51,13.45]
[1644469617177,1.27703739,111.55,111.51,13.7]
[1644469617375,1.27703739,111.55,111.51,13.45]
[1644469617976,42.25541227,111.54,111.51,13.45]
[1644469618174,1.27703739,111.55,111.51,13.7]
[1644469619875,1.27703739,111.55,111.51,50.313334]
[1644469620476,1.27703739,111.55,111.51,13.7]
[1644469623778,43.76359126,111.56,111.51,13.7]
[1644469624384,43.76359126,111.56,111.52,37.49300221]
[1644469624580,43.76359126,111.56,111.53,13.4509]
[1644469625280,6.06219997,111.55,111.53,13.4509]
[1644469625880,43.76359126,111.56,111.53,13.4509]
[1644469628685,1.27703739,111.56,111.53,13.4509]
[1644469630588,40.00966242,111.56,111.53,13.4509]
[1644469637122,1.27703739,111.56,111.53,13.4509]
[1644469639123,1.27703739,111.56,111.53,48.19785124]
[1644469641324,6.06219997,111.55,111.53,13.4509]
[1644469642829,3.03219997,111.55,111.53,13.4509]
[1644469643129,48.04188235,111.55,111.53,13.4509]
[1644469643426,6.06219997,111.54,111.53,13.4509]
[1644469644028,49.31891974,111.55,111.53,13.4509]
[1644469646231,1.27703739,111.55,111.53,13.4509]
[1644469653044,7.33923736,111.55,111.53,13.4509]
[1644469655040,1.27703739,111.55,111.53,13.4509]
[1644469657144,1.27703739,111.56,111.53,13.7009]
[1644469657345,1.27703739,111.56,111.53,38.3983]
[1644469657745,1.27703739,111.57,111.53,38.3983]
[1644469659551,45.38693742,111.58,111.53,38.3983]
[1644469659747,45.35155358,111.58,111.53,38.3983]
[1644469660773,1.27703739,111.57,111.53,38.3983]
[1644469660974,36.3383708,111.56,111.53,38.3983]
[1644469661170,36.3383708,111.56,111.53,13.4509]
[1644469661572,37.61540819,111.56,111.53,13.4509]
[1644469663278,36.3383708,111.56,111.53,13.4509]
[1644469665982,6.06219997,111.55,111.53,13.4509]
[1644469666178,6.06219997,111.55,111.49,44.8411]
[1644469666378,1.27703739,111.54,111.48,23.9622]
[1644469666584,1.27703739,111.53,111.45,36.2606]
[1644469666981,38.35916389,111.52,111.46,43.96323692]
[1644469667181,37.0821265,111.52,111.47,13.4574]
[1644469668180,50.5407265,111.52,111.45,0.024]
[1644469668386,74.58996389,111.52,111.44,0.024]
[1644469668588,1.27703739,111.51,111.45,0.024]
[1644469668783,25.29793739,111.51,111.42,0.024]
[1644469668989,42.42009854,111.5,111.41,0.024]
[1644469669388,45.17372189,111.48,111.41,0.024]
[1644469669583,45.17372189,111.48,111.42,13.4629]
[1644469669784,45.17372189,111.48,111.42,13.4869]
[1644469671187,45.17372189,111.48,111.42,0.024]
[1644469671385,58.63792189,111.48,111.41,0.024]
[1644469674387,69.20892189,111.48,111.41,0.024]
[1644469686496,69.20892189,111.48,111.41,0.004]
[1644469686697,69.20892189,111.48,111.39,13.466]
[1644469687097,69.20892189,111.48,111.39,13.716]
[1644469688501,69.20892189,111.48,111.39,13.466]
[1644469692206,69.20892189,111.48,111.39,13.716]
[1644469692708,69.20892189,111.48,111.39,13.466]
[1644469693313,58.63792189,111.48,111.39,13.716]
[1644469695323,59.91495928,111.48,111.39,13.716]
[1644469696126,59.91495928,111.48,111.39,13.466]
[1644469696325,13.4662,111.46,111.39,13.466]
[1644469697528,14.74323739,111.46,111.39,13.466]
[1644469698429,1.27703739,111.45,111.39,13.466]
[1644469698629,43.80220695,111.44,111.39,13.466]
[1644469701532,43.80220695,111.44,111.39,13.716]
[1644469704737,24.36033739,111.46,111.39,13.716]
[1644469705035,24.36033739,111.46,111.41,13.4644]
[1644469705834,69.23727089,111.46,111.41,13.4644]
[1644469706934,1.27703739,111.45,111.4,0.024]
[1644469707135,1.27703739,111.45,111.39,13.4901]
[1644469707346,1.27703739,111.45,111.39,0.024]
[1644469707535,1.27703739,111.45,111.36,24.5194]
[1644469707735,1.27703739,111.44,111.39,0.024]
[1644469707936,1.27703739,111.44,111.36,0.024]
[1644469708736,13.4699,111.43,111.37,13.469]
[1644469708935,38.26078434,111.42,111.38,0.024]
[1644469709839,51.73138434,111.42,111.38,0.024]
[1644469710035,51.73138434,111.42,111.35,24.7694]
[1644469710236,51.73138434,111.42,111.36,0.024]
[1644469711836,51.73138434,111.42,111.36,13.4946]
[1644469721248,51.73138434,111.42,111.36,0.024]
[1644469722948,51.73138434,111.42,111.36,13.4947]
[1644469723649,51.73138434,111.42,111.36,0.024]
[1644469725049,36.9748,111.41,111.36,0.024]
[1644469727049,36.9748,111.41,111.35,37.9671]
[1644469727250,44.3748,111.41,111.35,37.9671]
[1644469727451,44.3748,111.41,111.34,13.4728]
[1644469727654,44.3748,111.41,111.31,44.909]
[1644469727952,45.65183739,111.41,111.31,44.909]
[1644469728157,45.65183739,111.41,111.32,43.30767794]
[1644469728755,45.65183739,111.41,111.33,13.474]
[1644469729753,44.3748,111.41,111.33,13.474]
[1644469729953,45.65183739,111.41,111.33,13.474]
[1644469733864,1.27703739,111.4,111.3,29.5212]
[1644469734061,13.4768,111.37,111.3,52.8067]
[1644469734262,23.7749,111.36,111.3,52.8067]
[1644469734662,38.69759955,111.35,111.3,92.80696193]
[1644469735063,38.69759955,111.35,111.3,93.05696193]
[1644469735262,38.69759955,111.35,111.3,53.0567]
[1644469735462,38.69759955,111.35,111.3,29.5355]
[1644469735990,38.69759955,111.35,111.31,13.4764]
[1644469736187,23.7749,111.36,111.31,13.4764]
[1644469736391,23.7749,111.36,111.31,13.7264]
[1644469737189,61.80740667,111.36,111.31,53.52250673]
[1644469737890,23.7749,111.36,111.31,53.52250673]
[1644469742198,13.4743,111.39,111.31,53.52250673]
[1644469742399,1.27703739,111.4,111.32,18.46]
[1644469742598,1.27703739,111.4,111.34,13.4685]
[1644469742798,2.55407478,111.44,111.35,18.46]
[1644469742799,1.27703739,111.44,111.35,18.46]
[1644469742998,1.27703739,111.45,111.35,18.46]
[1644469743198,42.73748729,111.45,111.36,89.55567565]
[1644469743398,41.4604499,111.45,111.37,12.484]
[1644469743596,41.4604499,111.45,111.37,18.484]
[1644469743800,41.4604499,111.45,111.37,20.5326479]
[1644469743998,41.4604499,111.45,111.38,1.7986479]
[1644469744199,41.4604499,111.45,111.4,13.4635]
[1644469744399,41.4604499,111.45,111.41,39.79610673]
[1644469745601,1.27703739,111.47,111.41,39.79610673]
[1644469745799,1.27703739,111.47,111.42,13.4632]
[1644469746099,14.74083739,111.48,111.42,13.4632]
[1644469746499,36.69366712,111.47,111.42,13.4632]
[1644469751111,25.55853739,111.49,111.42,13.4632]
[1644469751310,24.2815,111.49,111.42,13.7132]
[1644469751510,24.2815,111.49,111.44,13.4587]
[1644469751713,24.24203739,111.51,111.44,13.7087]
[1644469751911,1.27703739,111.52,111.44,27.9673479]
[1644469752111,45.6916288,111.52,111.45,45.64680184]
[1644469752310,45.6916288,111.52,111.45,6.25]
[1644469752711,45.6916288,111.52,111.47,13.4559]
[1644469753114,45.6916288,111.52,111.45,0.25]
[1644469753512,45.6916288,111.52,111.44,59.42392038]
[1644469754536,45.6916288,111.52,111.46,13.4588]
[1644469755740,59.1513288,111.52,111.46,13.4588]
[1644469757240,59.1513288,111.52,111.4,31.31691236]
[1644469757439,59.1513288,111.52,111.41,57.3319]
[1644469757440,60.42836619,111.52,111.41,57.3319]
[1644469758040,23.1554,111.51,111.41,98.30613195]
[1644469758240,13.4628,111.5,111.41,98.30613195]
[1644469758641,13.4628,111.5,111.41,98.55613195]
[1644469759541,47.3805,111.51,111.43,13.4616]
[1644469759747,47.3805,111.51,111.43,13.7116]
[1644469762143,47.3805,111.51,111.46,13.4573]
[1644469762344,45.6916288,111.52,111.46,13.4573]
[1644469762643,45.6916288,111.52,111.46,13.7073]
[1644469762847,45.6916288,111.52,111.47,12.46]
[1644469763045,0.03538384,111.56,111.47,12.46]
[1644469763244,0.03538384,111.55,111.48,13.455]
[1644469763445,0.03538384,111.56,111.48,13.455]
[1644469763844,0.03538384,111.56,111.48,13.705]
[1644469764044,39.65539399,111.56,111.48,13.705]
[1644469764247,0.03538384,111.55,111.49,40.97423195]
[1644469764542,39.65539399,111.56,111.49,54.42883195]
[1644469764747,0.03538384,111.55,111.49,54.67883195]
[1644469764944,39.65539399,111.56,111.49,54.67883195]
[1644469765144,0.03538384,111.55,111.49,54.67883195]
[1644469765347,39.65539399,111.56,111.49,54.67883195]
[1644469765545,0.03538384,111.55,111.49,54.67883195]
[1644469765746,39.65539399,111.56,111.49,54.67883195]
[1644469765947,39.65539399,111.56,111.49,13.4546]
[1644469766848,39.65539399,111.56,111.49,55.65980099]
[1644469767249,39.65539399,111.56,111.49,55.90980099]
[1644469767650,39.62001015,111.56,111.49,55.90980099]
[1644469767855,39.65471164,111.56,111.49,55.90980099]
[1644469768453,40.93174903,111.56,111.49,55.90980099]
[1644469768663,40.93174903,111.56,111.49,55.65980099]
[1644469768852,40.93174903,111.56,111.49,13.4546]
[1644469769252,1.27703739,111.55,111.49,13.4546]
[1644469769453,0.03470149,111.55,111.49,13.4546]
[1644469769653,40.93174903,111.56,111.49,13.7046]
[1644469770754,39.65471164,111.56,111.49,13.7046]
[1644469771455,40.93174903,111.56,111.49,13.7046]
[1644469772254,40.93174903,111.56,111.51,13.4523]
[1644469772454,40.89704754,111.56,111.51,13.4523]
[1644469772658,40.89704754,111.56,111.52,39.24508632]
[1644469772858,1.27703739,111.56,111.52,39.24508632]
[1644469773455,1.27703739,111.56,111.52,52.69728632]
[1644469773658,26.17103888,111.57,111.52,52.69728632]
[1644469774857,26.17103888,111.57,111.52,13.4522]
[1644469775257,24.89400149,111.57,111.52,13.4522]
[1644469775463,24.89400149,111.57,111.52,0.0022]
[1644469775659,24.89400149,111.57,111.51,13.4531]
[1644469775858,26.17103888,111.57,111.48,23.4842]
[1644469776056,26.17103888,111.57,111.47,42.28821907]
[1644469776057,28.42224118,111.57,111.47,42.28821907]
[1644469776257,1.27703739,111.56,111.45,60.3694]
[1644469776459,0.03470149,111.55,111.45,60.3694]
[1644469776761,1.31173888,111.55,111.45,60.3694]
[1644469776957,1.27703739,111.55,111.48,13.4559]
[1644469777158,1.31173888,111.55,111.48,13.4559]
[1644469777358,39.51853808,111.54,111.49,38.92041917]
[1644469778659,39.51853808,111.54,111.48,13.4545]
[1644469779061,39.51853808,111.54,111.45,12.46]
[1644469779260,39.51853808,111.54,111.44,44.8581]
[1644469779261,1.27703739,111.53,111.44,44.8581]
[1644469779661,1.27703739,111.53,111.45,35.87988666]
[1644469780262,1.27703739,111.53,111.45,36.12988666]
[1644469780867,1.27703739,111.53,111.46,13.4587]
[1644469781264,39.51853808,111.54,111.46,13.4587]
[1644469781265,40.79557547,111.54,111.46,13.7087]
[1644469781668,40.79557547,111.54,111.46,13.4587]
[1644469781866,40.79557547,111.54,111.46,13.7087]
[1644469783665,1.27703739,111.53,111.46,13.7087]
[1644469783866,14.73483739,111.53,111.46,13.7087]
[1644469784265,14.73483739,111.53,111.46,13.4587]
[1644469784565,1.27703739,111.53,111.46,13.4587]
[1644469784765,1.27703739,111.53,111.46,13.7087]
[1644469785666,1.27703739,111.53,111.46,13.4587]
[1644469786068,1.27703739,111.53,111.46,13.7087]
[1644469786271,1.27703739,111.53,111.46,13.4587]
[1644469787168,1.27703739,111.53,111.46,13.7087]
[1644469787369,54.25297547,111.54,111.46,13.7087]
[1644469787670,1.27703739,111.53,111.46,13.7087]
[1644469791274,1.27703739,111.53,111.46,15.51296472]
[1644469793274,1.27703739,111.53,111.47,6.0]
[1644469793674,25.68553888,111.55,111.48,15.25636472]
[1644469793873,1.27703739,111.55,111.48,15.25636472]
[1644469794075,1.27703739,111.55,111.49,6.0]
[1644469794375,1.27703739,111.55,111.49,8.05426472]
[1644469794581,41.17740678,111.55,111.5,43.06284275]
[1644469794875,41.17740678,111.55,111.5,13.452]
[1644469795075,1.27703739,111.54,111.5,13.452]
[1644469803003,1.27703739,111.55,111.5,13.702]
[1644469807507,1.31173888,111.56,111.5,13.702]
[1644469807708,1.27703739,111.56,111.5,13.702]
[1644469808309,1.27703739,111.56,111.5,15.50626472]
[1644469810513,1.27703739,111.56,111.5,13.702]
[1644469812617,1.27703739,111.56,111.5,13.452]
[1644469812816,1.27703739,111.55,111.5,13.452]
[1644469813316,46.06247415,111.54,111.5,13.452]
[1644469814218,46.06247415,111.54,111.5,13.702]
[1644469814423,46.06247415,111.54,111.5,13.452]
[1644469814619,47.33951154,111.54,111.5,13.452]
[1644469815619,1.27703739,111.53,111.5,13.452]
[1644469816221,6.06219997,111.52,111.5,13.452]
[1644469817923,6.06219997,111.52,111.47,44.8482]
[1644469818123,6.06219997,111.52,111.45,12.46]
[1644469818324,7.33923736,111.52,111.42,12.46]
[1644469818525,24.38093739,111.51,111.43,13.4616]
[1644469818725,1.27703739,111.5,111.43,13.4616]
[1644469818925,46.78671581,111.49,111.43,39.533138]
[1644469819527,45.50967842,111.49,111.43,39.533138]
[1644469820134,45.50967842,111.49,111.41,24.345]
[1644469820329,68.06247842,111.49,111.41,24.595]
[1644469821229,68.06247842,111.49,111.41,63.70603446]
[1644469821731,68.06247842,111.49,111.43,52.56266224]
[1644469825151,68.06247842,111.49,111.43,13.4616]
[1644469825356,68.06247842,111.49,111.42,13.4626]
[1644469825357,81.52507842,111.49,111.42,13.4626]
[1644469826254,81.52507842,111.49,111.42,57.64432529]
[1644469826654,68.06247842,111.49,111.42,57.89432529]
[1644469826853,68.06247842,111.49,111.42,57.64432529]
[1644469827653,68.06247842,111.49,111.42,57.89432529]
[1644469827855,68.06247842,111.49,111.42,57.64432529]
[1644469829255,68.06247842,111.49,111.42,57.89432529]
[1644469833458,68.06247842,111.49,111.42,57.64432529]
[1644469834660,68.06247842,111.49,111.42,57.89432529]
[1644469835461,68.06247842,111.49,111.42,57.64432529]
[1644469836365,68.06247842,111.49,111.42,57.89432529]
[1644469836766,68.06247842,111.49,111.42,57.64432529]
[1644469837669,68.06247842,111.49,111.42,57.89432529]
[1644469837867,68.06247842,111.49,111.42,57.64432529]
[1644469842267,68.06247842,111.49,111.42,57.14432529]
[1644469842971,81.52487842,111.49,111.42,12.9626]
[1644469843170,82.80191581,111.49,111.42,12.9626]
[1644469843374,82.80191581,111.49,111.41,37.8089]
[1644469843576,82.80191581,111.49,111.41,38.0589]
[1644469843871,82.30191581,111.49,111.41,38.0589]
[1644469844072,82.30191581,111.49,111.41,84.48706684]
[1644469845275,1.27703739,111.48,111.41,84.48706684]
[1644469845476,41.22433834,111.47,111.41,84.48706684]
[1644469845677,65.43413834,111.47,111.41,13.4639]
[1644469846075,65.43413834,111.47,111.4,13.4653]
[1644469846278,76.36617573,111.47,111.39,0.024]
[1644469846477,76.36617573,111.47,111.38,0.274]
[1644469846676,76.36617573,111.47,111.39,0.024]
[1644469847277,40.12476504,111.45,111.39,0.024]
[1644469847476,48.47489009,111.43,111.39,13.4663]
[1644469847677,48.47489009,111.43,111.39,13.4903]
[1644469847880,48.47489009,111.43,111.39,13.4663]
[1644469853186,48.47489009,111.43,111.39,50.74698482]
[1644469853386,1.27703739,111.46,111.39,50.74698482]
[1644469853688,23.91813739,111.47,111.39,50.99698482]
[1644469853887,23.91813739,111.47,111.39,51.02098482]
[1644469854293,71.62051321,111.47,111.39,51.02098482]
[1644469854604,71.62051321,111.47,111.41,55.0229662]
[1644469854987,70.34347582,111.47,111.41,55.0229662]
[1644469860614,70.34347582,111.47,111.41,55.2729662]
[1644469864225,1.27703739,111.48,111.41,55.2729662]
[1644469864423,1.27703739,111.49,111.43,13.4601]
[1644469864623,1.27703739,111.5,111.43,25.9201]
[1644469864827,23.79243739,111.51,111.44,6.0]
[1644469865223,43.58546924,111.5,111.44,6.25]
[1644469865424,44.86250663,111.5,111.45,13.4572]
[1644469865625,43.58546924,111.5,111.45,13.4572]
[1644469867727,44.86250663,111.5,111.45,13.4572]
[1644469868431,43.58546924,111.5,111.45,13.4572]
[1644469870232,44.86250663,111.5,111.44,19.4611]
[1644469870432,1.27703739,111.49,111.44,19.4611]
[1644469871032,45.13568013,111.48,111.44,13.4611]
[1644469875334,46.41271752,111.48,111.4,44.8722]
[1644469875536,24.0513,111.47,111.4,44.8722]
[1644469876135,40.69589057,111.46,111.39,0.024]
[1644469876337,40.69589057,111.46,111.41,13.4642]
[1644469879943,41.97292796,111.46,111.41,13.4642]
[1644469880341,40.69589057,111.46,111.41,13.4642]
[1644469880543,55.43832796,111.46,111.39,6.024]
[1644469881543,1.27703739,111.45,111.39,6.024]
[1644469881743,38.61808716,111.44,111.39,19.4907]
[1644469881943,38.61808716,111.44,111.39,19.4667]
[1644469882160,38.61808716,111.44,111.39,13.4667]
[1644469885266,38.61808716,111.44,111.39,51.20089637]
[1644469885467,1.27703739,111.45,111.39,51.20089637]
[1644469885668,25.32833739,111.47,111.39,13.4667]
[1644469885869,1.27703739,111.46,111.39,13.4907]
[1644469886668,40.0117709,111.45,111.39,13.4907]
[1644469886868,40.0117709,111.45,111.39,13.4667]
[1644469888068,40.0117709,111.45,111.39,13.4907]
[1644469890274,53.4790709,111.45,111.39,13.4907]
[1644469890470,53.4790709,111.45,111.34,39.42058467]
[1644469890471,54.75610829,111.45,111.38,0.024]
[1644469890671,54.75610829,111.45,111.36,0.024]
[1644469890672,22.6743,111.44,111.36,0.024]
[1644469890871,23.95133739,111.44,111.36,0.024]
[1644469891271,47.30894168,111.43,111.36,0.024]
[1644469891771,60.77844168,111.43,111.37,13.4692]
[1644469893773,47.30894168,111.43,111.37,55.39993282]
[1644469894375,47.30894168,111.43,111.37,55.42393282]
[1644469894677,47.30894168,111.43,111.37,55.67393282]
[1644469894876,47.30894168,111.43,111.37,68.13393282]
[1644469895077,47.30894168,111.43,111.37,69.96073535]
[1644469895480,22.6743,111.44,111.37,69.96073535]
[1644469896077,22.6743,111.44,111.39,13.4663]
[1644469896578,71.07018074,111.44,111.39,49.21634163]
[1644469899781,22.6743,111.44,111.39,49.21634163]
[1644469900981,62.9094345,111.44,111.39,49.21634163]
[1644469901282,62.9094345,111.44,111.39,49.46634163]
[1644469904086,22.6743,111.44,111.39,49.46634163]
[1644469904885,22.6743,111.44,111.39,49.21634163]
[1644469909493,1.27703739,111.46,111.39,49.46634163]
[1644469909694,1.27703739,111.46,111.41,13.4613]
[1644469909895,1.27703739,111.48,111.41,49.7476]
[1644469910094,1.27703739,111.48,111.42,7.82224163]
[1644469910294,1.27703739,111.49,111.42,20.53224163]
[1644469910593,39.4210259,111.49,111.43,37.32381661]
[1644469910794,38.14398851,111.49,111.44,6.0]
[1644469910995,38.14398851,111.49,111.45,13.4589]
[1644469911193,1.27703739,111.5,111.45,53.63793035]
[1644469912196,1.27703739,111.5,111.45,53.88793035]
[1644469912597,67.66086994,111.52,111.46,6.0]
[1644469912897,67.62616845,111.52,111.47,49.97576508]
[1644469913096,24.15213739,111.52,111.47,49.97576508]
[1644469913496,22.8751,111.52,111.47,49.97576508]
[1644469914096,48.30943091,111.51,111.47,49.97576508]
[1644469915099,22.90980149,111.52,111.47,49.97576508]
[1644469915299,22.8751,111.52,111.47,13.4555]
[1644469916216,60.41069963,111.52,111.47,13.4555]
[1644469916819,60.41069963,111.52,111.48,39.72628928]
[1644469917019,60.41069963,111.52,111.49,13.4564]
[1644469917218,6.06219997,111.51,111.49,13.4564]
[1644469918218,0.03470149,111.53,111.49,13.4564]
[1644469918418,37.45263888,111.55,111.49,13.4564]
[1644469918618,40.86980602,111.54,111.49,13.4564]
[1644469921421,40.86980602,111.54,111.5,39.37582233]
[1644469921624,37.45263888,111.55,111.5,52.83032233]
[1644469921625,36.17560149,111.55,111.5,52.83032233]
[1644469921821,22.6854,111.55,111.5,52.83032233]
[1644469922023,1.27703739,111.56,111.5,52.83032233]
[1644469922323,0.03470149,111.58,111.51,35.31575393]
[1644469922522,0.03470149,111.56,111.51,50.09966975]
[1644469922723,0.03470149,111.58,111.52,47.39080169]
[1644469922922,35.07169169,111.59,111.53,12.46]
[1644469923121,0.03470149,111.58,111.54,39.37582233]
[1644469923323,35.0369902,111.59,111.55,13.4453]
[1644469923724,35.0369902,111.59,111.55,13.6953]
[1644469926227,35.0369902,111.59,111.54,13.4495]
[1644469926428,35.0369902,111.59,111.51,14.28224163]
[1644469926627,35.0369902,111.59,111.51,12.46]
[1644469926830,0.03470149,111.58,111.51,12.46]
[1644469927733,0.03470149,111.58,111.52,13.4509]
[1644469928030,35.07169169,111.59,111.52,13.4509]
[1644469928431,35.07169169,111.59,111.52,50.06179527]
[1644469928830,48.52379169,111.59,111.52,50.06179527]
[1644469929433,48.52379169,111.59,111.52,13.4509]
[1644469930935,49.80082908,111.59,111.5,13.4534]
[1644469931136,0.03470149,111.58,111.48,12.46]
[1644469931339,13.4562,111.56,111.46,12.46]
[1644469931535,0.03470149,111.55,111.46,12.46]
[1644469931937,40.351946,111.56,111.46,53.53673347]
[1644469932136,0.03470149,111.54,111.48,13.4567]
[1644469932334,0.03470149,111.54,111.49,43.61814595]
[1644469932535,40.351946,111.56,111.49,43.61814595]
[1644469932735,0.03470149,111.55,111.49,43.61814595]
[1644469932936,40.31724451,111.56,111.49,43.61814595]
[1644469933136,0.03470149,111.55,111.49,43.61814595]
[1644469933336,40.31724451,111.56,111.49,43.61814595]
[1644469933536,40.31724451,111.56,111.5,13.4529]
[1644469935738,53.77264451,111.56,111.49,13.4557]
[1644469937536,55.0496819,111.56,111.49,13.4557]
[1644469939641,1.27703739,111.55,111.49,13.4557]
[1644469939838,46.71214483,111.54,111.49,13.4557]
[1644469945146,47.98918222,111.54,111.49,13.4557]
[1644469945345,46.71214483,111.54,111.49,13.4557]
[1644469945746,47.98918222,111.54,111.49,13.4557]
[1644469946147,47.98918222,111.54,111.49,49.85840088]
[1644469946849,47.98918222,111.54,111.49,13.4557]
[1644469948152,46.71214483,111.54,111.49,13.4557]
[1644469948354,47.98918222,111.54,111.49,13.4557]
[1644469948951,46.71214483,111.54,111.49,13.4557]
[1644469949580,47.98918222,111.54,111.49,13.4557]
[1644469949775,47.98918222,111.54,111.5,6.0]
[1644469950574,47.98918222,111.54,111.49,13.4557]
[1644469954878,1.27703739,111.54,111.5,51.1120838]
[1644469955080,1.31173888,111.54,111.5,51.1120838]
[1644469955278,1.27703739,111.54,111.5,51.1120838]
[1644469955477,1.27703739,111.55,111.5,51.1120838]
[1644469956079,1.27703739,111.54,111.5,51.1120838]
[1644469961297,39.03575177,111.54,111.5,51.1120838]
[1644469962597,39.03575177,111.54,111.5,13.4547]
[1644469963897,1.27703739,111.53,111.5,13.4547]
[1644469964098,46.64779881,111.52,111.5,13.4547]
[1644469964697,6.06219997,111.51,111.5,13.4547]
[1644469965099,6.06219997,111.51,111.49,13.4565]
[1644469971927,1.31173888,111.53,111.49,13.4565]
[1644469972128,1.27703739,111.53,111.49,13.4565]
[1644469972533,46.57574765,111.53,111.49,13.4565]
[1644469972730,1.27703739,111.52,111.49,13.4565]
[1644469974733,46.57574765,111.53,111.49,13.4565]
[1644469977436,1.27703739,111.53,111.49,13.4565]
[1644469978535,1.27703739,111.53,111.51,13.4544]
[1644469980642,6.06219997,111.52,111.51,13.4544]
[1644469981140,1.27703739,111.53,111.51,13.4544]
[1644469982744,1.27703739,111.54,111.51,13.4544]
[1644469982943,1.27703739,111.55,111.51,13.4544]
[1644469983145,0.03470149,111.57,111.51,13.4544]
[1644469983146,1.27703739,111.54,111.51,13.4544]
[1644469983943,3.03,111.53,111.51,13.4544]
[1644469984344,3.03219997,111.52,111.51,13.4544]
[1644469985244,3.03,111.53,111.51,13.4544]
[1644469986350,1.27703739,111.54,111.51,13.4544]
[1644469987153,1.27703739,111.54,111.51,50.80129741]
[1644469987857,44.73529371,111.55,111.51,50.80129741]
[1644469988055,1.27703739,111.55,111.51,50.80129741]
[1644469988657,1.27703739,111.55,111.51,51.05129741]
[1644469988856,1.27703739,111.56,111.51,51.05129741]
[1644469989056,1.27703739,111.56,111.51,63.51129741]
[1644469989260,1.31173888,111.57,111.51,63.51129741]
[1644469989457,1.27703739,111.57,111.51,63.51129741]
[1644469989860,1.27703739,111.57,111.53,46.55079093]
[1644469990058,46.48783888,111.58,111.53,59.99969093]
[1644469990259,46.45313739,111.58,111.53,59.99969093]
[1644469992560,1.27703739,111.58,111.53,59.99969093]
[1644469993363,1.31173888,111.59,111.53,59.99969093]
[1644469993561,1.27703739,111.59,111.53,59.99969093]
[1644469993760,1.27703739,111.59,111.54,6.0]
[1644469993960,1.27703739,111.59,111.55,13.4467]
[1644469994161,1.27703739,111.6,111.55,13.4467]
[1644469994879,1.27703739,111.59,111.55,13.4467]
[1644469995080,1.27703739,111.6,111.55,13.4467]
[1644469998887,1.27703739,111.6,111.55,25.9067]
[1644469999084,1.27703739,111.61,111.56,6.0]
[1644469999285,0.03470149,111.6,111.57,25.903]
[1644469999489,1.31173888,111.63,111.57,25.903]
[1644469999685,1.27703739,111.63,111.58,28.6541]
[1644469999884,1.27703739,111.63,111.59,12.46]
[1644470000084,1.31173888,111.63,111.59,12.46]